fUSD/lending_fUSD_20260207
["ID","MTS","AMOUNT","RATE_DAILY","PERIOD"]
[404727041,1770496244051,-254.38,0.00020411,2]
[404727042,1770496244061,-1183.45,0.00020509,2]
[404727043,1770496244071,-1026.0,0.00020515,2]
[404727044,1770496244081,-400.0,0.0002087,2]
[404727045,1770496244091,-400.0,0.0002087,2]
[404727046,1770496244100,-2228.10668164,0.00020905,2]
[404727047,1770496244111,-160.0,0.00021,7]
[404727048,1770496244120,-500.31,0.00021091,2]
[404727049,1770496244130,-1852.42,0.00021201,2]
[404727050,1770496244140,-1000.0,0.0002124,2]
[404727051,1770496244149,-1011.0823,0.00021299,2]
[404727052,1770496244159,-1183.45,0.00021485,2]
[404727053,1770496244169,-10539.36012314,0.000215,2]
[404727054,1770496244179,-222.49089562,0.000215,2]
[404727055,1770496244188,-163.0,0.00021857,2]
[404727056,1770496244198,-300.0,0.00021917,2]
[404727057,1770496244208,-5000.0,0.00021918,2]
[404727058,1770496244217,-500.0,0.00021918,2]
[404727059,1770496244227,-500.0,0.00021918,2]
[404727060,1770496244237,-500.0,0.00021918,2]
[404727061,1770496244247,-500.0,0.00021918,2]
[404727062,1770496244256,-500.0,0.00021918,2]
[404727063,1770496244266,-500.0,0.00021918,2]
[404727064,1770496244276,-500.0,0.00021918,2]
[404727065,1770496244285,-500.0,0.00021918,2]
[404727066,1770496244295,-500.0,0.00021918,2]
[404727067,1770496244304,-500.0,0.00021918,2]
[404727068,1770496244314,-500.0,0.00021918,2]
[404727069,1770496244328,-500.0,0.00021918,2]
[404727070,1770496244338,-500.0,0.00021918,2]
[404727071,1770496244350,-500.0,0.00021918,2]
[404727072,1770496244361,-500.0,0.00021918,2]
[404727073,1770496244371,-500.0,0.00021918,2]
[404727074,1770496244383,-500.0,0.00021918,2]
[404727075,1770496244392,-500.0,0.00021918,2]
[404727076,1770496244403,-500.0,0.00021918,2]
[404727077,1770496244414,-577.14844941,0.00021918,2]
[404727078,1770496244424,-500.0,0.00021918,2]
[404727079,1770496244434,-500.0,0.00021918,2]
[404727080,1770496244444,-500.0,0.00021918,2]
[404727081,1770496244454,-500.0,0.00021918,2]
[404727082,1770496244465,-500.0,0.00021918,2]
[404727083,1770496244476,-500.0,0.00021918,2]
[404727084,1770496244487,-500.0,0.00021918,2]
[404727085,1770496244496,-500.0,0.00021918,2]
[404727086,1770496244506,-500.0,0.00021918,2]
[404727087,1770496244516,-500.0,0.00021918,2]
[404727088,1770496244526,-500.0,0.00021918,2]
[404727089,1770496244535,-500.0,0.00021918,2]
[404727090,1770496244544,-500.0,0.00021918,2]
[404727091,1770496244554,-500.0,0.00021918,2]
[404727092,1770496244564,-500.0,0.00021918,2]
[404727093,1770496244574,-500.0,0.00021918,2]
[404727094,1770496244583,-500.0,0.00021918,2]
[404727095,1770496244593,-500.0,0.00021918,2]
[404727096,1770496244603,-500.0,0.00021918,2]
[404727097,1770496244612,-500.0,0.00021918,2]
[404727098,1770496244621,-500.0,0.00021918,2]
[404727099,1770496244631,-500.0,0.00021918,2]
[404727100,1770496244640,-500.0,0.00021918,2]
[404727101,1770496244650,-500.0,0.00021918,2]
[404727102,1770496244659,-500.0,0.00021918,2]
[404727103,1770496244669,-500.0,0.00021918,2]
[404727104,1770496244679,-500.0,0.00021918,2]
[404727105,1770496244688,-194.33604466,0.00021918,2]
[404727106,1770496244701,-500.0,0.00021918,2]
[404727107,1770496244711,-500.0,0.00021918,2]
[404727108,1770496244721,-500.0,0.00021918,2]
[404727109,1770496244731,-500.0,0.00021918,2]
[404727110,1770496244741,-500.0,0.00021918,2]
[404727111,1770496244751,-500.0,0.00021918,2]
[404727112,1770496244761,-150.0,0.00021918,2]
[404727113,1770496244771,-500.0,0.00021918,2]
[404727114,1770496244781,-500.0,0.00021973,2]
[404727115,1770496244791,-500.0,0.00021973,2]
[404727116,1770496244800,-1844.59449689,0.00021982,2]
[404727117,1770496244810,-3558.43,0.00022,7]
[404727118,1770496244819,-799.93171184,0.00022,7]
[404727119,1770496244829,-16293.07,0.00022,2]
[404727120,1770496244840,-255.92941986,0.00022028,2]
[404727121,1770496244853,-500.0,0.00022028,2]
[404727122,1770496244863,-500.0,0.00022082,2]
[404727123,1770496244874,-500.0,0.00022137,2]
[404727124,1770496245122,-500.0,0.00022192,2]
[404727125,1770496245132,-359.9595705,0.00022247,2]
[404727126,1770496245141,-4627.7,0.00022296,2]
[404727127,1770496245152,-2228.10668164,0.0002244,2]
[404727128,1770496245161,-300.0,0.00022459,2]
[404727129,1770496245170,-500.0,0.0002246,2]
[404727130,1770496245180,-500.0,0.0002246,2]
[404727131,1770496245189,-511.65883454,0.0002246,2]
[404727132,1770496245199,-500.0,0.0002246,2]
[404727133,1770496245209,-500.0,0.0002246,2]
[404727134,1770496245218,-500.0,0.0002246,2]
[404727135,1770496245227,-500.0,0.0002246,2]
[404727136,1770496245237,-510.4331516,0.0002246,2]
[404727137,1770496245246,-500.0,0.0002246,2]
[404727138,1770496245255,-500.0,0.0002246,2]
[404727139,1770496245265,-500.0,0.0002246,2]
[404727140,1770496245274,-500.0,0.0002246,2]
[404727141,1770496245283,-506.98515424,0.0002246,2]
[404727142,1770496245296,-509.2963147,0.0002246,2]
[404727143,1770496245306,-500.0,0.0002246,2]
[404727144,1770496245315,-500.0,0.0002246,2]
[404727145,1770496245324,-500.0,0.0002246,2]
[404727146,1770496245334,-500.0,0.0002246,2]
[404727147,1770496245344,-500.0,0.0002246,2]
[404727148,1770496245355,-500.0,0.0002246,2]
[404727149,1770496245366,-150.0,0.0002246,2]
[404727150,1770496245375,-500.0,0.0002246,2]
[404727151,1770496245386,-500.0,0.0002246,2]
[404727152,1770496245399,-506.90768866,0.0002246,2]
[404727153,1770496245409,-387.32253792,0.0002246,2]
[404727154,1770496245420,-500.0,0.0002246,2]
[404727155,1770496245430,-160.92297488,0.0002246,2]
[404727156,1770496245442,-500.0,0.0002246,2]
[404727157,1770496245453,-500.0,0.0002246,2]
[404727158,1770496245463,-500.0,0.0002246,2]
[404727159,1770496245475,-500.0,0.0002246,2]
[404727160,1770496245485,-500.0,0.0002246,2]
[404727161,1770496245495,-1183.45,0.00022462,2]
[404727162,1770496245504,-300.0,0.00022599,2]
[404727163,1770496245515,-219674.84057721,0.000226,2]
[404727164,1770496245525,-156.16432723,0.00022854,2]
[404727165,1770496245535,-342.00264161,0.00022889,2]
[404727166,1770496245545,-160.0,0.00023,2]
[404727167,1770496245554,-160.0,0.00023,3]
[404727168,1770496245563,-637.54823264,0.00023,7]
[404727169,1770496245573,-267.60703924,0.00023008,2]
[404727170,1770496245583,-956.19349362,0.00023008,2]
[404727171,1770496245594,-1000.0,0.00023008,2]
[404727172,1770496245606,-1000.0,0.00023008,2]
[404727173,1770496245616,-1000.0,0.00023008,2]
[404727174,1770496245626,-1000.0,0.00023008,2]
[404727175,1770496245635,-408.8446401,0.00023008,2]
[404727176,1770496245646,-1000.0,0.00023008,2]
[404727177,1770496245656,-1000.0,0.00023008,2]
[404727178,1770496245667,-1000.0,0.00023008,2]
[404727179,1770496245676,-626.50935226,0.00023008,2]
[404727180,1770496245686,-1000.0,0.00023008,2]
[404727181,1770496245695,-1000.0,0.00023008,2]
[404727182,1770496245705,-1000.0,0.00023008,2]
[404727183,1770496245715,-1000.0,0.00023008,2]
[404727184,1770496245725,-677.28221394,0.00023008,2]
[404727185,1770496245735,-250.11398482,0.00023008,2]
[404727186,1770496245744,-1000.0,0.00023008,2]
[404727187,1770496245754,-1000.0,0.00023008,2]
[404727188,1770496245763,-1000.0,0.00023008,2]
[404727189,1770496245774,-490.41332566,0.00023008,2]
[404727190,1770496245783,-1000.0,0.00023008,2]
[404727191,1770496245793,-1000.0,0.00023008,2]
[404727192,1770496245802,-1000.0,0.00023008,2]
[404727193,1770496245811,-1000.0,0.00023008,2]
[404727194,1770496245821,-1000.0,0.00023171,2]
[404727196,1770496245831,-500.0,0.00023187,2]
[404727198,1770496245840,-277.35679052,0.00023302,2]
[404727200,1770496245853,-1183.45,0.00023439,2]
[404727202,1770496245862,-1500.0,0.00023556,2]
[404727204,1770496245871,-1500.0,0.00023556,2]
[404727206,1770496245881,-1500.0,0.00023556,2]
[404727207,1770496245890,-1500.0,0.00023556,2]
[404727208,1770496245900,-908.89576694,0.00023556,2]
[404727209,1770496245910,-1504.2260666,0.00023556,2]
[404727211,1770496245921,-1500.0,0.00023556,2]
[404727212,1770496245930,-1500.0,0.00023556,2]
[404727213,1770496245939,-1500.0,0.00023556,2]
[404727214,1770496245950,-1500.0,0.00023556,2]
[404727215,1770496245963,-1500.0,0.00023556,2]
[404727216,1770496245975,-1500.0,0.00023556,2]
[404727217,1770496245985,-1500.0,0.00023556,2]
[404727218,1770496245995,-1500.0,0.00023556,2]
[404727219,1770496246006,-1500.0,0.00023556,2]
[404727220,1770496246015,-1500.0,0.00023556,2]
[404727221,1770496246025,-1500.0,0.00023556,2]
[404727222,1770496246036,-1500.0,0.00023556,2]
[404727223,1770496246046,-362.57654928,0.00023597,2]
[404727224,1770496246057,-195.33076979,0.00023615,2]
[404727225,1770496246067,-287.61899177,0.0002385,2]
[404727226,1770496246078,-16293.07,0.000239,2]
[404727227,1770496246087,-175.73,0.00023901,2]
[404727228,1770496246097,-3471.61,0.00023934,2]
[404727229,1770496246107,-190.47,0.00023948,2]
[404727230,1770496246117,-2228.10668164,0.00023974,2]
[404727231,1770496246127,-3558.43,0.00024,7]
[404727233,1770496246136,-160.0,0.00024,7]
[404727234,1770496246145,-500.31,0.00024045,2]
[404727235,1770496246155,-5008.15573244,0.00024103,2]
[404727236,1770496246164,-5000.0,0.00024103,2]
[404727237,1770496246176,-5000.0,0.00024103,2]
[404727238,1770496246185,-5000.0,0.00024103,2]
[404727239,1770496246196,-5000.0,0.00024103,2]
[404727240,1770496246207,-2000.0,0.00024104,2]
[404727241,1770496246217,-2000.0,0.00024104,2]
[404727242,1770496246227,-1990.99013013,0.00024104,2]
[404727243,1770496246237,-2149.51215349,0.00024104,2]
[404727244,1770496246247,-2000.0,0.00024104,2]
[404727245,1770496246256,-2000.0,0.00024104,2]
[404727246,1770496246266,-589.95947915,0.00024104,2]
[404727247,1770496246275,-2000.0,0.00024104,2]
[404727248,1770496246286,-2000.0,0.00024104,2]
[404727249,1770496246295,-2000.0,0.00024104,2]
[404727250,1770496246304,-477.38277676,0.00024104,2]
[404727251,1770496246314,-2000.0,0.00024104,2]
[404727252,1770496246323,-692.37886657,0.00024104,2]
[404727253,1770496246335,-2000.0,0.00024104,2]
[404727254,1770496246345,-1222.56300425,0.00024104,2]
[404727255,1770496246354,-2000.0,0.00024104,2]
[404727256,1770496246364,-156.16432723,0.00024283,2]
[404727257,1770496246373,-298.26089446,0.00024398,2]
[404727258,1770496246382,-2210.92986901,0.00024652,2]
[404727259,1770496246391,-2500.0,0.00024652,2]
[404727260,1770496246401,-2500.0,0.00024652,2]
[404727261,1770496246411,-1011.53035871,0.00024652,2]
[404727262,1770496246420,-289.68,0.00024658,2]
[404727263,1770496246429,-3349.22423772,0.00024737,2]
[404727264,1770496246438,-309.29654756,0.00024946,2]
[404727265,1770496246447,-3000.0,0.000252,2]
[404727266,1770496246457,-3000.0,0.000252,2]
[404727267,1770496246466,-2015.79,0.00025283,2]
[404727268,1770496246476,-199.69,0.00025395,2]
[404727269,1770496246485,-320.74051982,0.00025494,2]
[404727270,1770496246494,-2228.10668164,0.00025508,2]
[404727271,1770496246503,-156.16432723,0.00025711,2]
[404727272,1770496246512,-204.49,0.00025715,2]
[404727273,1770496246522,-869.28825225,0.00025748,2]
[404727274,1770496246531,-3500.0,0.00025748,2]
[404727275,1770496246540,-1000.0,0.00025979,2]
[404727276,1770496246550,-16293.07,0.00026,2]
[404727277,1770496246559,-332.60791905,0.00026042,2]
[404727278,1770496246569,-1193.76418737,0.00026296,2]
[404727279,1770496246578,-4290.61608061,0.000263,2]
[404727280,1770496246587,-1844.59449689,0.00026333,2]
[404727281,1770496246596,-344.91441206,0.0002659,2]
[404727282,1770496246606,-3558.43,0.000266,7]
[404727283,1770496246616,-199.69,0.00026806,2]
[404727284,1770496246626,-180.23086787,0.00026912,2]
[404727285,1770496246635,-164.48774038,0.00027,2]
[404727286,1770496246644,-2228.10668164,0.00027043,2]
[404727287,1770496246654,-357.6762453,0.00027138,2]
[404727288,1770496246663,-156.16432723,0.0002714,2]
[404727289,1770496246672,-289.68,0.00027397,2]
[404727290,1770496246681,-300.0,0.00027397,2]
[404727291,1770496246691,-1000.0,0.00027397,20]
[404727292,1770496246700,-370.91026638,0.00027686,2]
[404727293,1770496246709,-222.36,0.0002775,2]
[404727294,1770496246718,-175.73,0.00028188,2]
[404727295,1770496246727,-199.69,0.00028216,2]
[404727296,1770496246736,-384.63394623,0.00028234,2]
[404727297,1770496246746,-190.47,0.00028282,2]
[404727298,1770496246755,-2541.44,0.00028371,2]
[404727299,1770496246764,-222.36,0.000285,2]
[404727300,1770496246774,-156.16432723,0.00028568,2]
[404727301,1770496246784,-2228.10668164,0.00028577,2]
[404727302,1770496246794,-16293.07,0.000286,2]
[404727303,1770496246803,-166.66,0.0002866,2]
[404727304,1770496246812,-364.81782118,0.00028664,2]
[404727305,1770496246821,-302.05817763,0.00028664,2]
[404727306,1770496246831,-195.33076979,0.00028712,2]
[404727307,1770496246840,-398.86540225,0.00028782,2]
[404727308,1770496246852,-222.36,0.0002925,2]
[404727309,1770496246862,-150.0,0.000293,14]
[404727310,1770496246872,-166.66,0.00029607,2]
[404727311,1770496246881,-199.69,0.00029627,2]
[404727312,1770496246891,-3558.43,0.000297,7]
[404727313,1770496246900,-237.38329208,0.0002999,2]
[404727314,1770496246910,-156.16432723,0.00029996,2]
[404727315,1770496246919,-591.5075181,0.0003,7]
[404727316,1770496246929,-1818.83836505,0.0003,2]
[404727317,1770496246941,-163.14671548,0.0003,2]
[404727318,1770496246952,-2228.10668164,0.00030112,2]
[404727319,1770496246962,-1100.63268506,0.0003013,2]
[404727320,1770496246971,-634.57864906,0.0003013,2]
[404727321,1770496246981,-201.87528113,0.0003013,2]
[404727322,1770496246991,-5401.06462395,0.0003013,2]
[404727323,1770496247001,-151.0,0.0003013,7]
[404727324,1770496247010,-654.921522,0.0003013,7]
[404727325,1770496247020,-654.921522,0.0003013,7]
[404727326,1770496247030,-654.921522,0.0003013,7]
[404727327,1770496247040,-654.921522,0.0003013,7]
[404727328,1770496247049,-289.68,0.00030137,2]
[404727329,1770496247059,-1000.0,0.000302,14]
[404727330,1770496247068,-284.88597226,0.000302,14]
[404727331,1770496247078,-9039.0,0.000303,2]
[404727332,1770496247087,-166.66,0.00030553,2]
[404727333,1770496247097,-1844.59449689,0.00030683,2]
[404727334,1770496247106,-158.19,0.000308,14]
[404727335,1770496247116,-5530.0,0.000308,3]
[404727336,1770496247125,-199.69,0.00031038,2]
[404727337,1770496247135,-5530.0,0.000313,5]
[404727338,1770496247145,-156.16432723,0.00031425,2]
[404727339,1770496247154,-166.66,0.00031499,2]
[404727340,1770496247164,-197.47031313,0.000315,2]
[404727341,1770496247174,-150.0,0.000315,2]
[404727342,1770496247183,-2228.10668164,0.00031646,2]
[404727343,1770496247193,-2447.0,0.00031903,2]
[404727344,1770496247202,-894.72585091,0.000323,2]
[404727345,1770496247212,-166.66,0.00032445,2]
[404727346,1770496247223,-199.69,0.00032449,2]
[404727347,1770496247232,-9760.0,0.00032475,5]
[404727348,1770496247242,-4832.94194423,0.000328,2]
[404727349,1770496247251,-156.16432723,0.00032853,2]
[404727350,1770496247261,-289.68,0.00032877,2]
[404727351,1770496247269,-1414.68,0.000329,2]
[404727352,1770496247278,-177.51,0.000329,14]
[404727353,1770496247287,-1013.7761403,0.00033,5]
[404727354,1770496247296,-153.63540437,0.00033,2]
[404727355,1770496247306,-165.0,0.00033,14]
[404727356,1770496247315,-2228.10668164,0.00033181,2]
[404727357,1770496247324,-166.66,0.00033391,2]
[404727358,1770496247334,-171.11,0.000334,14]
[404727359,1770496247343,-1212.11725022,0.000335,2]
[404727360,1770496247352,-158.72,0.00033501,2]
[404727361,1770496247361,-195.33076979,0.00033808,2]
[404727362,1770496247370,-199.69,0.0003386,2]
[404727363,1770496247379,-150.0,0.00033873,5]
[404727364,1770496247389,-150.0,0.00033873,5]
[404727365,1770496247398,-150.0,0.00033873,5]
[404727366,1770496247407,-292.87,0.00033873,2]
[404727367,1770496247416,-2000.0,0.00034,20]
[404727368,1770496247425,-1000.0,0.00034,20]
[404727369,1770496247435,-5000.0,0.00034103,2]
[404727370,1770496247444,-5000.0,0.00034103,2]
[404727371,1770496247454,-1273.706,0.000342,2]
[404727372,1770496247511,-251.149,0.000342,2]
[404727373,1770496247520,-1206.0,0.000342,2]
[404727374,1770496247529,-917.837,0.000342,2]
[404727375,1770496247538,-616.0,0.000342,2]
[404727376,1770496247547,-3255.636,0.000342,2]
[404727377,1770496247556,-16293.07,0.000342,2]
[404727378,1770496247566,-156.16432726,0.00034281,2]
[404727379,1770496247575,-177.51,0.000343,14]
[404727380,1770496247585,-158.71811997,0.00034386,2]
[404727381,1770496247594,-250.0,0.00034421,5]
[404727382,1770496247603,-250.0,0.00034421,5]
[404727383,1770496247612,-250.0,0.00034421,5]
[404727384,1770496247622,-1731.94437755,0.0003449,2]
[404727385,1770496247631,-1414.68,0.000345,2]
[404727386,1770496247640,-151.0,0.00034631,2]
[404727387,1770496247651,-250.0,0.00034631,2]
[404727388,1770496247661,-267.0,0.00034631,2]
[404727389,1770496247671,-200.0,0.00034631,2]
[404727390,1770496247680,-197.364,0.00034631,2]
[404727391,1770496247690,-250.0,0.00034631,2]
[404727392,1770496247699,-229.965,0.00034631,2]
[404727393,1770496247709,-159.021,0.00034631,2]
[404727394,1770496247718,-250.0,0.00034631,2]
[404727395,1770496247728,-191.746,0.00034631,2]
[404727396,1770496247740,-250.0,0.00034631,2]
[404727397,1770496247750,-212.873,0.00034631,2]
[404727398,1770496247761,-172.0,0.00034631,2]
[404727399,1770496247770,-232.546,0.00034631,2]
[404727400,1770496247780,-2228.10668164,0.00034715,2]
[404727401,1770496247790,-2447.0,0.00034903,2]
[404727402,1770496247800,-150.0,0.00034904,2]
[404727403,1770496247810,-350.0,0.00034968,5]
[404727404,1770496247823,-350.0,0.00034968,5]
[404727405,1770496247832,-350.0,0.00034968,5]
[404727406,1770496247842,-1918.23562081,0.00035,2]
[404727407,1770496247857,-800.14801699,0.00035,2]
[404727408,1770496247867,-1844.59449689,0.00035034,2]
[404727409,1770496247875,-1188.33269675,0.0003526,2]
[404727410,1770496247885,-199.69,0.00035271,2]
[404727411,1770496247895,-494.49066866,0.00035516,5]
[404727412,1770496247906,-450.0,0.00035516,5]
[404727413,1770496247916,-441.40961792,0.00035516,5]
[404727414,1770496247928,-150.0,0.00035562,7]
[404727415,1770496247938,-150.0,0.00035562,7]
[404727416,1770496247947,-150.0,0.00035562,7]
[404727417,1770496247956,-150.0,0.00035562,7]
[404727418,1770496247966,-400.0,0.0003557,2]
[404727419,1770496247975,-500.0,0.00035589,5]
[404727420,1770496247984,-177.51,0.000356,14]
[404727421,1770496247993,-150.0,0.00035607,7]
[404727422,1770496248003,-1287.64763618,0.00035616,2]
[404727423,1770496248012,-200.0,0.00035616,2]
[404727424,1770496248022,-1504.0,0.00035616,7]
[404727425,1770496248032,-1504.0,0.00035616,7]
[404727426,1770496248041,-152.0,0.00035616,7]
[404727427,1770496248050,-159.38491667,0.00035616,7]
[404727428,1770496248060,-1504.0,0.00035616,7]
[404727429,1770496248069,-153.0,0.00035616,7]
[404727430,1770496248078,-152.0,0.00035616,7]
[404727431,1770496248087,-1504.0,0.00035616,7]
[404727432,1770496248097,-153.0,0.00035616,7]
[404727433,1770496248106,-152.0,0.00035616,7]
[404727434,1770496248115,-1504.0,0.00035616,7]
[404727435,1770496248124,-153.0,0.00035616,7]
[404727436,1770496248134,-152.0,0.00035616,7]
[404727437,1770496248143,-1504.0,0.00035616,7]
[404727438,1770496248152,-153.0,0.00035616,7]
[404727439,1770496248161,-1504.0,0.00035616,7]
[404727440,1770496248171,-152.0,0.00035616,7]
[404727441,1770496248181,-1504.0,0.00035616,7]
[404727442,1770496248190,-152.0,0.00035616,7]
[404727443,1770496248199,-159.0,0.00035616,7]
[404727444,1770496248209,-1504.0,0.00035616,7]
[404727445,1770496248219,-152.0,0.00035616,7]
[404727446,1770496248229,-152.0,0.00035616,7]
[404727447,1770496248238,-160.23474232,0.00035616,7]
[404727448,1770496248248,-1504.0,0.00035616,7]
[404727449,1770496248257,-152.0,0.00035616,7]
[404727450,1770496248267,-1504.0,0.00035616,7]
[404727451,1770496248276,-152.0,0.00035616,7]
[404727452,1770496248286,-1504.0,0.00035616,7]
[404727453,1770496248296,-152.0,0.00035616,7]
[404727454,1770496248306,-153.0,0.00035616,7]
[404727455,1770496248316,-152.0,0.00035616,7]
[404727456,1770496248328,-1504.0,0.00035616,7]
[404727457,1770496248337,-1504.0,0.00035616,7]
[404727458,1770496248347,-1504.0,0.00035616,7]
[404727459,1770496248356,-1504.0,0.00035616,7]
[404727460,1770496248366,-1504.0,0.00035616,7]
[404727461,1770496248376,-1504.0,0.00035616,7]
[404727462,1770496248386,-152.0,0.00035616,7]
[404727463,1770496248398,-152.0,0.00035616,7]
[404727464,1770496248408,-1504.0,0.00035616,7]
[404727465,1770496248418,-152.0,0.00035616,7]
[404727466,1770496248430,-1504.0,0.00035616,7]
[404727467,1770496248439,-152.0,0.00035616,7]
[404727468,1770496248451,-1504.0,0.00035616,7]
[404727469,1770496248461,-152.0,0.00035616,7]
[404727470,1770496248471,-1504.0,0.00035616,7]
[404727471,1770496248481,-152.0,0.00035616,7]
[404727472,1770496248492,-1504.0,0.00035616,7]
[404727473,1770496248502,-153.0,0.00035616,7]
[404727474,1770496248512,-152.0,0.00035616,7]
[404727475,1770496248522,-152.0,0.00035616,7]
[404727476,1770496248531,-153.0,0.00035616,7]
[404727477,1770496248541,-1504.0,0.00035616,7]
[404727478,1770496248550,-153.0,0.00035616,7]
[404727479,1770496248561,-152.0,0.00035616,7]
[404727480,1770496248572,-1504.0,0.00035616,7]
[404727481,1770496248582,-153.0,0.00035616,7]
[404727482,1770496248593,-152.0,0.00035616,7]
[404727483,1770496248603,-1504.0,0.00035616,7]
[404727484,1770496248613,-153.0,0.00035616,7]
[404727485,1770496248623,-152.0,0.00035616,7]
[404727486,1770496248632,-1504.0,0.00035616,7]
[404727487,1770496248642,-153.0,0.00035616,7]
[404727488,1770496248651,-152.0,0.00035616,7]
[404727489,1770496248662,-153.0,0.00035616,7]
[404727490,1770496248672,-152.0,0.00035616,7]
[404727491,1770496248682,-1504.0,0.00035616,7]
[404727492,1770496248693,-153.0,0.00035616,7]
[404727493,1770496248702,-152.0,0.00035616,7]
[404727494,1770496248712,-153.0,0.00035616,7]
[404727495,1770496248722,-152.0,0.00035616,7]
[404727496,1770496248733,-1504.0,0.00035616,7]
[404727497,1770496248743,-153.0,0.00035616,7]
[404727498,1770496248753,-152.0,0.00035616,7]
[404727499,1770496248761,-1504.0,0.00035616,7]
[404727500,1770496248769,-153.0,0.00035616,7]
[404727501,1770496248777,-152.0,0.00035616,7]
[404727502,1770496248785,-1504.0,0.00035616,7]
[404727503,1770496248793,-153.0,0.00035616,7]
[404727504,1770496248802,-152.0,0.00035616,7]
[404727505,1770496248810,-1504.0,0.00035616,7]
[404727506,1770496248819,-152.0,0.00035616,7]
[404727507,1770496248828,-153.0,0.00035616,7]
[404727508,1770496248836,-1504.0,0.00035616,7]
[404727509,1770496248845,-152.0,0.00035616,7]
[404727510,1770496248858,-1504.0,0.00035616,7]
[404727511,1770496248867,-152.0,0.00035616,7]
[404727512,1770496248876,-1504.0,0.00035616,7]
[404727513,1770496248885,-269.0,0.00035616,7]
[404727514,1770496248895,-153.0,0.00035616,7]
[404727515,1770496248904,-1504.0,0.00035616,7]
[404727516,1770496248913,-1504.0,0.00035616,7]
[404727517,1770496248924,-153.0,0.00035616,7]
[404727518,1770496248933,-1504.0,0.00035616,7]
[404727519,1770496248942,-244.32691947,0.00035616,7]
[404727520,1770496248952,-1465.0,0.00035616,7]
[404727521,1770496248961,-2000.0,0.00035616,2]
[404727522,1770496248971,-200.0,0.00035616,2]
[404727523,1770496248980,-1504.0,0.00035616,7]
[404727524,1770496248990,-1504.0,0.00035616,7]
[404727525,1770496249000,-152.0,0.00035616,7]
[404727526,1770496249009,-1504.0,0.00035616,7]
[404727527,1770496249018,-152.0,0.00035616,7]
[404727528,1770496249027,-152.02083019,0.00035616,7]
[404727529,1770496249036,-1504.0,0.00035616,7]
[404727530,1770496249046,-527.23949464,0.00035616,7]
[404727531,1770496249056,-200.0,0.00035616,2]
[404727532,1770496249065,-193.98899012,0.00035616,7]
[404727533,1770496249075,-151.0,0.00035616,28]
[404727534,1770496249085,-151.0,0.00035616,28]
[404727535,1770496249094,-217.27634127,0.00035616,14]
[404727536,1770496249105,-200.0,0.00035616,2]
[404727537,1770496249115,-153.93537236,0.00035616,7]
[404727538,1770496249124,-154.35396912,0.00035616,7]
[404727539,1770496249134,-454.38660406,0.00035616,7]
[404727540,1770496249144,-289.68,0.00035616,2]
[404727541,1770496249154,-150.0,0.00035653,7]
[404727542,1770496249164,-150.0,0.00035671,4]
[404727543,1770496249174,-150.0,0.00035671,4]
[404727544,1770496249184,-150.0,0.00035671,4]
[404727545,1770496249194,-150.0,0.00035671,4]
[404727546,1770496249204,-150.0,0.00035673,5]
[404727547,1770496249213,-300.0,0.00035673,5]
[404727548,1770496249224,-150.0,0.00035683,4]